Cogmind - Beta 15 @@@ ROGUE MODE // 2025.07.11 @ 21:51:20 Player: Lord Dregs Result: Destroyed by as-06412 with Assembled Blade Performance ------------- Evolutions (0) 0 Regions Visited (2) 400 Robots Destroyed (23) 115 Value Destroyed (580) 580 Prototype IDs (2) 40 Alien Tech Used (0) 0 Bonus (25) 25 TOTAL SCORE: 1160 Bonus ------- Follower Combat Kills 25 Cogmind --------- Core Integrity 0/250 Matter 299/300 Energy 99/100 System Corruption 0% Temperature Cool (70) Movement Walking (120) Location -10/Mines Parts ------- > --- POWER (1) -------- (None) > --- PROPULSION (2) --- Aluminum Leg > --- UTILITY (2) ------ Small Storage Unit > --- WEAPON (2) ------- Light Assault Rifle > --- INVENTORY (8) ---- Ion Engine Ion Engine Light Ion Engine Aluminum Leg Experimental Sensor Array Small Laser Light Assault Rifle Peak State ------------ > --- POWER ------------ Ion Engine > --- PROPULSION ------- Aluminum Leg Aluminum Leg > --- UTILITY ---------- Small Storage Unit Light Armor Plating > --- WEAPON ----------- Medium Laser Small Laser > --- INVENTORY -------- Light Ion Engine Light Treads Light Treads Small Laser [Rating: 7] Favorites ----------- Power Ion Engine Engine Ion Engine Propulsion Aluminum Leg Treads Light Treads Leg Aluminum Leg Utility Small Storage Unit Device Heat Sink Storage Small Storage Unit Protection Light Armor Plating Weapon Small Laser Energy Gun Small Laser Energy Cannon Beam Cannon Ballistic Gun Light Assault Rifle Build | -11 -10 -10 ------- Run | Yrd Mat Min Slots Evolved . | . . . Power . | . . . Propulsion . | . . . Utility . | . . . Weapon . | . . . Parts Attached 18 | 8 10 . Power 2 | 1 1 . Engine 2 | 1 1 . Core . | . . . Reactor . | . . . Propulsion 6 | 4 2 . Treads 2 | 2 . . Leg 4 | 2 2 . Wheel . | . . . Hover . | . . . Flight . | . . . Utility 3 | 1 2 . Device 1 | . 1 . Storage 1 | 1 . . Processor . | . . . Hackware . | . . . Protection 1 | . 1 . Artifact . | . . . Weapon 7 | 2 5 . Energy Gun 4 | 2 2 . Energy Cannon 1 | . 1 . Ballistic Gun 2 | . 2 . Ballistic Cannon . | . . . Launcher . | . . . Special Weapon . | . . . Impact Weapon . | . . . Slashing Weapon . | . . . Piercing Weapon . | . . . Special Melee Weapon . | . . . Unidentified Prototypes . | . . . Parts Lost 10 | . 7 3 Power 2 | . 1 1 Propulsion 3 | . 2 1 Utility 2 | . 2 . Weapon 3 | . 2 1 Highest Loss Streak 3 | . 3 3 To Critical Strikes . | . . . Average Backups 6 | 2 5 7 Power 2 | . 1 3 Propulsion 2 | 1 1 2 Utility . | . . . Weapon 1 | . 1 2 Tool/Special . | . . . Unused Backups 7 | . 1 6 Power 3 | . . 3 Propulsion 2 | . 1 1 Utility 1 | . . 1 Weapon 1 | . . 1 Tool/Special . | . . . Average Slot Usage (%) 93 | . 96 84 Engine 14 | . 14 14 Treads 12 | . 17 . Leg 15 | . 10 27 Device 1 | . 2 . Storage 13 | . 13 14 Protection 7 | . 9 . Energy Gun 15 | . 16 14 Energy Cannon 7 | . 9 . Ballistic Gun 4 | . 1 14 Peak Build Rating 7 | 6 7 7 Average Rating 6 | 3 6 6 On Entrance 4 | . 6 6 Naked Turns . | . . . Heaviest Build 18 | 13 18 13 Greatest Support 40 | 20 40 20 Greatest Overweight (x) . | . . . Average Overweight (x) . | . . . Largest Inventory Capacity 8 | 8 8 8 Average Capacity 7 | 5 7 8 Most Carried 8 | 5 8 8 Average Carried 6 | 3 5 7 Final Capacity 8 | 8 8 8 Final Carried 8 | 4 8 7 Class Distribution -------------------- 100% | Mutant Dominant Class ---------------- Mutant | -10/Materials Mutant | -10/Mines Resources | -11 -10 -10 ----------- Run | Yrd Mat Min Matter Collected 400 | 216 171 13 Remotely . | . . . Salvage Created 702 | . 557 145 Parts 35 | . 32 3 Haulers Intercepted . | . . . Recyclers Shooed . | . . . Parts Field Recycled . | . . . Retrieved Matter . | . . . Parts Self-Destructed . | . . . Prevented . | . . . Kills | -11 -10 -10 ------- Run | Yrd Mat Min Combat Hostiles Destroyed 17 | . 14 3 Guns 14 | . 11 3 Cannons 3 | . 3 . Classes Destroyed 6 | . 6 . Worker 1 | . 1 . Tunneler 2 | . 1 1 Mechanic 1 | . 1 . Watcher 2 | . 2 . Swarmer 5 | . 5 . Grunt 12 | . 9 3 Best Kill Streak 4 | . 4 2 Combat Bots Only 4 | . 4 2 Max Kills in Single Turn 2 | . 2 1 Gunslinging . | . . . Exploded . | . . . Melee . | . . . Uniques/NPCs Destroyed . | . . . Combat | -11 -10 -10 -------- Run | Yrd Mat Min Hostile Shots Fired 135 | . 115 20 Missed 40 | . 37 3 Hits 95 | . 78 17 Melee 7 | . . 7 Projectile 88 | . 78 10 Damage Taken 1337 | . 972 365 Core 263 | . 141 122 Absorbed by Shields . | . . . Regen/Repaired (Parts) 132 | . 132 . Core Remaining (%) 100 | 100 . . Volleys Fired 72 | . 51 21 Largest 2 | . 2 2 Hottest 110 | . 110 70 Shots Fired 137 | . 96 41 Gun 106 | . 65 41 Cannon 31 | . 31 . Launcher . | . . . Special . | . . . Kinetic 29 | . 8 21 Thermal 108 | . 88 20 Explosive . | . . . Electromagnetic . | . . . Robot Hit Streak 9 | . 9 7 Robot Miss Streak 3 | . 3 3 Penetration Max . | . . . Secondary Targets . | . . . Shots Hit Robots 90 | . 64 26 Core Hits 39 | . 30 9 Critical Kills . | . . . Critical Parts Destroyed . | . . . Critical Strikes 3 | . 1 2 Burn 3 | . 1 2 Melee Attacks . | . . . Impact . | . . . Slashing . | . . . Piercing . | . . . Sneak Attacks . | . . . Combat Hostiles . | . . . Follow-up Attacks . | . . . Damage Inflicted 1198 | . 928 270 Guns 783 | . 514 269 Cannons 398 | . 398 . Explosions . | . . . Melee . | . . . Ramming 17 | . 16 1 Kinetic 144 | . 49 95 Thermal 1037 | . 863 174 Explosive . | . . . Electromagnetic . | . . . Impact . | . . . Slashing . | . . . Piercing . | . . . Highest Corruption . | . . . Average Corruption . | . . . Corruption Purged . | . . . Corruption Blocked . | . . . Overload Shots . | . . . Overflow Damage 6 | . 6 . Projectiles 6 | . 6 . Explosions . | . . . Melee . | . . . Knockbacks . | . . . Impact . | . . . Kinetic . | . . . Secondary . | . . . Self-Inflicted Damage . | . . . Shots . | . . . Rammed 1 | . 1 . Targets Rammed 5 | . 4 1 Kicked 4 | . 3 1 Crushed . | . . . Highest Temperature 428 | . 428 199 Average Temperature 121 | . 135 73 Received Heat Transfer 414 | . 336 78 Effects 4 | . 4 . Shutdowns 2 | . 2 . Damage (minor) 2 | . 2 . Siege Activations . | . . . Martial Activations . | . . . Shielding Activations . | . . . Robots Disrupted . | . . . Combat Hostiles . | . . . Robots Corrupted . | . . . Combat Hostiles . | . . . Parts Fried . | . . . Impact Corruptions . | . . . Robots Melted . | . . . Combat Hostiles . | . . . Parts Melted 10 | . 5 5 Heat Transferred 2818 | . 2152 666 Parts Sabotaged . | . . . Parts Stolen . | . . . Parts Stripped . | . . . Power Chain Reactions . | . . . Alert | -11 -10 -10 ------- Run | Yrd Mat Min Maximum Alert Level . | . . . Low Security (%) 100 | 100 100 100 Level 1 . | . . . Level 2 . | . . . Level 3 . | . . . Level 4 . | . . . Level 5 . | . . . High Security . | . . . Max Security . | . . . Peak Influence 112 | . 112 70 Initial 40 | . . 40 Average 19 | . 19 22 Influence Increases 563 | . 440 123 Destroy 0b10 Robot/C 360 | . 280 80 Destroy 0b10 Robot/NC 30 | . 25 5 Destroy Leader 84 | . 64 20 Allied During Kill 3 | . . 3 Successful Hack 40 | . 40 . Disable Machine 15 | . . 15 Destroy Structure 1 | . 1 . Lose Combat Pursuer 30 | . 30 . Influence Decreases 563 | . 336 227 Entered New Map 64 | . . 64 Time Decay 439 | . 276 163 Lost Part 60 | . 60 . Squads Dispatched 4 | . 4 . Investigation 3 | . 3 . Extermination . | . . . Reinforcement 1 | . 1 . Assault . | . . . Garrison . | . . . Intercept . | . . . Searches Triggered . | . . . Construction Impeded . | . . . Haulers Reinforced . | . . . Active Scanning Responses . | . . . Cargo Convoy Interrupts . | . . . Stealth | -11 -10 -10 --------- Run | Yrd Mat Min Distress Signals 2 | . 2 . Communications Jammed . | . . . Distress Signals . | . . . Times Spotted 29 | . 22 7 Peak Tracking Total 6 | . 6 2 Tactical Retreats 2 | . 2 . Traps | -11 -10 -10 ------- Run | Yrd Mat Min Traps Triggered 3 | . 3 . Indirectly . | . . . Trap Hack Attempts . | . . . Triggered . | . . . Disarmed . | . . . Reprogrammed . | . . . Reused . | . . . Traps Extracted . | . . . Installed . | . . . Triggered . | . . . Machines | -11 -10 -10 ---------- Run | Yrd Mat Min Machines Disabled 1 | . . 1 Max in Single Turn . | . . . Machines Repaired . | . . . Machines Dismantled . | . . . Machines Sabotaged . | . . . Overloaded Fab Kills . | . . . Hacking | -11 -10 -10 --------- Run | Yrd Mat Min Machines Accessed 8 | . 8 . Terminals 5 | . 5 . Fabricators . | . . . Repair Stations 1 | . 1 . Recycling Units 2 | . 2 . Scanalyzers . | . . . Garrison Access . | . . . Total Hacks 28 | . 28 . Successful 12 | . 12 . Failed 16 | . 16 . Catastrophic 2 | . 2 . Database Lockouts . | . . . Manual 6 | . 6 . Terminals 16 | . 16 . Fabricators . | . . . Repair Stations 3 | . 3 . Recycling Units 9 | . 9 . Scanalyzers . | . . . Garrison Access . | . . . Terminal Hacks 8 | . 8 . Record 2 | . 2 . Prototype ID Bank 1 | . 1 . Branch Access Points 3 | . 3 . Emergency Access Points 1 | . 1 . Zone Layout 1 | . 1 . Fabricator Hacks . | . . . Repair Station Hacks 2 | . 2 . Scan Component 1 | . 1 . Repair 1 | . 1 . Recycling Unit Hacks 2 | . 2 . Report Inventory 2 | . 2 . Scanalyzer . | . . . Garrison Access Hacks . | . . . Unauthorized Hacks . | . . . Terminals . | . . . Fabricators . | . . . Repair Stations . | . . . Recycling Units . | . . . Scanalyzers . | . . . Garrison Access . | . . . Data Cores Recovered . | . . . Used . | . . . Hacking Detections 7 | . 7 . Full Trace Events 4 | . 4 . Feedback Events . | . . . Feedback Blocked . | . . . Robot Schematics Acquired . | . . . Robots Built . | . . . Authchips . | . . . Time . | . . . Total Robot Build Rating . | . . . Part Schematics Acquired . | . . . Parts Built . | . . . Authchips . | . . . Time . | . . . Total Part Build Rating . | . . . Parts Repaired 1 | . 1 . Time 26 | . 26 . Parts Recycled . | . . . Recycled Matter . | . . . Retrieved Matter . | . . . Retrieved Components . | . . . Parts Scanalyzed . | . . . Part Schematics Acquired . | . . . Parts Damaged . | . . . Bothacking | -11 -10 -10 ------------ Run | Yrd Mat Min Used RIF Installer . | . . . Robots Hacked . | . . . Non-combat . | . . . Combat . | . . . Robot Hacks Applied . | . . . Relay Couplers Released . | . . . Fabnet Peak Effective % . | . . . Robots Rewired . | . . . Allies Hacked . | . . . Hacks Repelled . | . . . Allies | -11 -10 -10 -------- Run | Yrd Mat Min Total Allies 1 | . . 1 Largest Group 1 | . . 1 Highest-Rated Group 31 | . . 31 Highest-Rated Ally 31 | . . 31 Total Orders . | . . . Ally Attacks 12 | . . 12 Total Damage 149 | . . 149 Kills 1 | . . 1 Allies Corrupted . | . . . Allies Melted . | . . . Intel | -11 -10 -10 ------- Run | Yrd Mat Min Active Infowar (turns) . | . . . Robot Analysis Total . | . . . Derelict Logs Recovered 3 | . . 3 Drone Launches . | . . . Drone Recoveries . | . . . Exploration | -11 -10 -10 ------------- Run | Yrd Mat Min Turns Passed 1843 | 70 1272 501 Spaces Moved 1099 | 51 712 336 Core 14 | 14 . . Treads 438 | . 438 . Legs 647 | 37 274 336 Wheels . | . . . Hover . | . . . Flight . | . . . Fastest Speed 50 | 50 120 120 Average Speed 135 | 100 144 120 Slowest Speed 160 | 120 160 120 Overloaded Moves . | . . . Propulsion Burnouts . | . . . Robots Hopped . | . . . Potential Cave-ins . | . . . Cave-ins Triggered . | . . . Exploration Rate (%) 56 | 4 91 73 Regions Visited 2 Branch Regions 1 Pre-discovered Areas 1 | . . 1 Known Exits Taken 1 | . 1 . Unknown Exits Taken 1 | 1 . . Scrap Searched . | . . . Spaces Dug . | . . . Terrain Destroyed . | . . . Melee . | . . . Projectile . | . . . AOE . | . . . Terrain Rammed . | . . . Walls Destroyed . | . . . Machines Disabled . | . . . Actions | -11 -10 -10 --------- Run | Yrd Mat Min Total 1325 | 68 858 399 Wait 98 | . 60 38 Move 1097 | 50 711 336 Hop . | . . . Pick Up 26 | 10 15 1 Fast Attach . | . . . Attach 15 | 6 9 . Detach . | . . . Swap 7 | 2 5 . Drop 5 | . 3 2 Fire 72 | . 51 21 Melee . | . . . Ram . | . . . Kick 4 | . 3 1 Crush 1 | . 1 . Escape Stasis . | . . . Rewire . | . . . Trap . | . . . Miscellaneous . | . . . Route ------- -11/Scrapyard -10/Materials (discovered 4 exits: *Mat x3 / *Min) -10/Mines (discovered 2 exits: Mat / [*Sub]) History --------- Turn | Location | Event 3 | -11/Scrapyard | Discovered new exit (range 15) 71 | -11/Scrapyard | Entered Materials 319 | -10/Materials | Build established: Mutant 435 | -10/Materials | Lost 3 parts (2n1u) 526 | -10/Materials | Identified exit to Mines 553 | -10/Materials | Discovered new exit (range 13) 707 | -10/Materials | Repaired Sml. Storage Unit 846 | -10/Materials | Discovered new exit (range 6) 1226 | -10/Materials | Discovered new exit (range 14) 1268 | -10/Materials | Core integrity fell below 50% 1343 | -10/Materials | Entered Mines 1374 | -10/Mines | Met a Derelict bent on vengeance 1456 | -10/Mines | Received a Mining Laser from a helpful Derelict 1560 | -10/Mines | Learned location of Zion (-7) 1561 | -10/Mines | Discovered new exit (range 11) 1584 | -10/Mines | Learned Materials trap positions 1594 | -10/Mines | Identified exit to Materials 1707 | -10/Mines | Assembled infested the area 1712 | -10/Mines | Assisted by a Guerilla fighting off Assembled 1756 | -10/Mines | Found a damaged Exp. Sensor Array with a note attached 1758 | -10/Mines | Found Prototype Device 1830 | -10/Mines | Core integrity fell below 20% 1844 | -10/Mines | Destroyed by as-06412 with Assembled Blade Last Messages --------------- 01714_ XJ-0HM(g): "You look like you can take it from here!" 01714_ XJ-0HM(g) slips back into the shadows. 01738_ RM-3BJ(h): "I'll hold them off! Go on ahead or try to find another way!" 01754_ Dropped Lgt. Treads. 01756_ A damaged part is partially visible under some rubble. There's a note attached: "Everyone keeps telling us we should avoid high-traffic areas because that's where patrols are more likely to show up, but that doesn't do us much good if we can't spot those areas until they're on top of us... With this we can! Deliver it to Megawrench for repairs then we'll never be afraid of an ambush while sneaking around Materials again, ha." 01758_ Acquired Prototype Device. 01837_ Aluminum Leg destroyed. 01842_ Med. Laser destroyed. 01842_ Ion Engine destroyed. Map ----- +----------------------------------------------------+ | ???????# #???????????# #???????????? | | ??????## #??#####????# #???????????? | | ??????# ##?## ##???# #???????????? | | ??????# ##?##%= ##### ##??????????? | | ??????## ## ##?## % #??????????? | | ???????### #######?## """% ##### #??????????? | | ########?## ##????#### """" ##??# ###????????? | | #??# #????## """" #### ##?????### | | #### #????# ##???## | | ###### #????# #??## | | #????#########????# ## ###### #### "" | | #?????????????????## #### #????## ## "" | | ???????????????????####???## ##?????## "" | | ???????????????????????????###???????## | | ??????????????????????????????????????### ## | | ????????????????????????????????????????######## | | ??????????????????????????????????????????????## | | ?????####????????????????????????????????###### | | ????## ####?????????????????????????????# | | ????# ######????????????????????????# ### | | ???## """ #????????????????????????# #?# | | #### """ ###########??????????????# #?## | | """ ### #??????????????# #??# | | # ### #?# #???????????#### #??# | | # #?## ############## #???????????# #??# | | # #??## #???????????#@##??????????# ###?? | | # #???# ########???## a######?????# #### | | # #???# ##### = ####### | | # #???# ### ### = ##### ## | | ##??# ##?# #?######## ###### #???###?? | | #??# ##??# #######??### ##????# #??????? | | #### #???# #????## ##????? #?????? | | #???####### #?????## #?????? #?????? | | ##########?????????# #??????# #?????# ##?????? | | ???????????????????# #??????# #????? ##??????? | | ???????????????????# #??????# #????? #???????? | | ???????????????????# #?????? #????? ???????? | | ???????????????????# #?????? #????? ???????? | | ???????????????????# #??????####????? #???????? | | ???????????????????# #??????????????# ???????? | | ????#############??# #??????????????## ???????? | | ????# #??# #???????????????# ##???????? | | ????# #??# #????????????????# ?????????? | | ????# #??# #????????????????? ?????????? | | ????# #### #????????????????? ?????????? | | ????# """ *%=#???????????????????????????? | | ????# """ ######???????????????????????????? | | ????# """ #????????????????????????????????? | | ????# #????????????????????????????????? | | ????# """ """ #????????????????????????????????? | +----------------------------------------------------+ Best States ------------- Heat Dissipation 35 Energy Generation 10 Energy Capacity 250 Matter Stores 300 Matter Capacity 300 Sight Range 16 Terrain Scan Density 10 Armor Coverage 150 Evasion (%) 55 Recoil Reduction 2 Item Schematics ----------------- None Robot Schematics ------------------ None Fabricated ------------ Nothing Repaired ---------- Sml. Storage Unit | 12% | -10/Materials Alien Tech Used ----------------- None Achievements -------------- None Challenges ------------ None Game ------ Seed IonicRestorationRifle Manual? 0 Play Time 00:22:29 Cumulative 4.3 hours Start 2025.07.11 @ 21:24:13 End 2025.07.11 @ 21:51:20 Sessions 1 Manual Loads 0 Difficulty Rogue Special Mode None Game No. 5 Rogue 5 Adventurer 0 Explorer 0 Win Type - Total 0 Types 0/0/0/0/0/0/0/0/0/0 Lore% 1 Gallery% 6 Achievement% 6 Wizard Run 0 Options --------- Layout 1 ASCII 0 Keyboard 0 Movement Mouse Keybinds 0 Fullscreen 1 Font 24/Smallcaps Map View 50x35 Zoom Use 0% Tactical HUD 1 Map Filters NONE Filters NONE Steam 1 RUN: 8e370006-47a2-4402-98b0-3df71f5c0fd3